bitfinex-derivatives/quotes_ETHF0:USTF0_20250317
["timestamp","ask_amount","ask_price","bid_price","bid_amount"]
[1742244034451,5.82590296,1933.9,1933.8,1.03431]
[1742244035854,2.61810296,1933.9,1933.8,1.03431]
[1742244036055,1.70196,1933.9,1933.8,1.03431]
[1742244036253,0.6677,1933.9,1933.8,1.03431]
[1742244036453,1.70196,1933.9,1933.8,1.03431]
[1742244037751,1.70196,1933.9,1933.8,2.38511]
[1742244039551,3.12956,1933.9,1933.8,2.38511]
[1742244039959,2.46186,1933.9,1933.8,2.38511]
[1742244043352,1.4276,1933.9,1933.8,2.38511]
[1742244049364,1.4276,1933.9,1933.8,5.74911]
[1742244058566,0.00776237,1934.0,1933.9,1.03426]
[1742244058864,1.40006237,1934.0,1933.9,3.18556]
[1742244060060,0.00776237,1934.0,1933.9,3.18556]
[1742244060266,4.6001,1934.2,1934.1,1.03415]
[1742244060467,4.1271514,1934.2,1934.1,1.03415]
[1742244061563,3.2078,1934.2,1934.1,1.03415]
[1742244061965,5.1612514,1934.2,1934.1,1.03415]
[1742244062175,4.1271514,1934.2,1934.1,1.75305]
[1742244062468,4.2419,1934.2,1934.1,1.03415]
[1742244062669,5.1612514,1934.2,1934.1,1.03415]
[1742244063271,5.1612514,1934.2,1933.8,1.0343]
[1742244063272,1.03426,1933.9,1933.8,1.0343]
[1742244063464,1.03426,1933.9,1933.8,2.37568]
[1742244063674,2.42895,1934.0,1933.8,1.3414]
[1742244063974,2.42895,1934.0,1933.9,1.03426]
[1742244064863,1.92434325,1934.1,1934.0,1.0342]
[1742244065273,0.9193514,1934.1,1934.0,1.0342]
[1742244065472,0.9193514,1934.1,1934.0,1.7568]
[1742244065473,1.9535014,1934.1,1934.0,1.7568]
[1742244065665,0.9193514,1934.1,1934.0,3.1801]
[1742244066066,1.03415,1934.1,1934.0,3.1801]
[1742244066272,1.9535014,1934.1,1934.0,3.1801]
[1742244066672,1.9535014,1934.1,1934.0,2.4575]
[1742244069168,2.61138685,1934.1,1934.0,2.4575]
[1742244069975,3.61571409,1934.1,1934.0,2.4575]
[1742244070273,3.61577736,1934.1,1934.0,2.4575]
[1742244070774,1.92353726,1934.1,1934.0,2.4575]
[1742244072575,2.95768726,1934.1,1934.0,2.4575]
[1742244073481,1.92353726,1934.1,1934.0,2.4575]
[1742244074080,2.95768726,1934.1,1934.0,2.4575]
[1742244075177,1.92353726,1934.1,1934.0,2.4575]
[1742244075684,1.03415,1934.1,1934.0,2.4575]
[1742244075887,1.74183,1934.2,1934.1,1.03415]
[1742244076082,0.7077,1934.2,1934.1,1.03415]
[1742244076581,1.6270514,1934.2,1934.1,1.03415]
[1742244077384,2.6611514,1934.2,1934.1,1.03415]
[1742244077588,0.9193514,1934.2,1934.1,1.03415]
[1742244077790,1.72880237,1934.3,1934.2,1.0341]
[1742244078490,1.61369615,1934.3,1934.2,1.0341]
[1742244079487,2.92329615,1934.3,1934.2,1.7187]
[1742244081989,3.95733615,1934.3,1934.2,1.7187]
[1742244082286,3.95733615,1934.3,1934.2,1.0341]
[1742244082886,2.92329615,1934.3,1934.2,1.0341]
[1742244083395,2.23629615,1934.3,1934.2,1.0341]
[1742244084793,3.24103686,1934.3,1934.2,1.0341]
[1742244087984,1.92367449,1934.3,1934.2,1.0341]
[1742244088185,1.3817,1935.1,1935.0,1.03367]
[1742244088481,2.38216,1935.4,1935.3,1.03351]
[1742244088681,42.1487,1935.4,1935.3,1.03351]
[1742244089089,1.0333,1935.7,1935.6,1.03331]
[1742244089293,1.0333,1935.7,1935.5,1.0334]
[1742244089294,1.708,1935.7,1935.5,1.0334]
[1742244089488,1.708,1935.7,1935.6,1.03335]
[1742244089687,3.0897,1935.7,1935.6,1.03335]
[1742244089886,3.0897,1935.7,1935.5,1.03336]
[1742244090291,3.0897,1935.7,1935.6,1.03335]
[1742244090681,43.8897,1935.7,1935.6,1.03335]
[1742244090998,1.0334,1935.6,1935.5,1.03338]
[1742244091184,4.00138,1935.6,1935.2,0.00776237]
[1742244091389,1.03349,1935.4,1935.3,1.03346]
[1742244091790,1.418,1935.4,1935.3,1.03346]
[1742244091995,2.45146,1935.4,1935.3,1.03346]
[1742244093085,1.418,1935.4,1935.3,1.03346]
[1742244093689,2.45146,1935.4,1935.3,1.03346]
[1742244094090,2.45146,1935.4,1935.3,2.40696]
[1742244094291,1.418,1935.4,1935.3,2.40696]
[1742244095198,2.45146,1935.4,1935.3,2.40696]
[1742244095395,2.45146,1935.4,1935.3,1.03346]
[1742244095891,1.418,1935.4,1935.3,1.03346]
[1742244096096,2.45146,1935.4,1935.3,1.03346]
[1742244097995,2.45146,1935.4,1935.2,1.04132237]
[1742244097996,1.03351,1935.3,1935.2,1.04132237]
[1742244098196,3.03491,1935.3,1935.2,1.04132237]
[1742244102006,3.03491,1935.3,1935.2,0.00776237]
[1742244102210,6.24271,1935.3,1935.2,0.00776237]
[1742244108614,4.5233,1935.3,1935.2,1.04132237]
[1742244108913,5.55681,1935.3,1935.2,1.71012237]
[1742244109516,5.55681,1935.3,1935.2,3.13682237]
[1742244109911,4.5233,1935.3,1935.2,3.13682237]
[1742244110111,5.55681,1935.3,1935.2,3.13682237]
[1742244110611,5.55681,1935.3,1935.2,2.10326237]
[1742244111313,5.55681,1935.3,1935.2,3.13682237]
[1742244111510,5.55681,1935.3,1935.2,2.10326237]
[1742244113115,5.55681,1935.3,1935.2,3.13682237]
[1742244113316,5.55681,1935.3,1935.2,2.10326237]
[1742244113917,5.55681,1935.3,1935.2,3.13682237]
[1742244114311,4.5233,1935.3,1935.2,3.13682237]
[1742244114509,1.3155,1935.3,1935.2,3.13682237]
[1742244114911,2.34901,1935.3,1935.2,3.13682237]
[1742244115810,2.34901,1935.3,1935.2,2.10326237]
[1742244116013,2.34901,1935.3,1935.2,3.13682237]
[1742244122618,1.3155,1935.3,1935.2,3.13682237]
[1742244122810,2.34901,1935.3,1935.2,3.13682237]
[1742244123422,1.3155,1935.3,1935.2,3.13682237]
[1742244123621,0.00776237,1935.8,1935.3,1.03351]
[1742244123825,1.0334,1935.5,1935.3,2.0419]
[1742244124009,1.0334,1935.5,1935.4,1.3279]
[1742244124210,1.0334,1935.5,1935.4,2.36136]
[1742244124414,0.673,1935.5,1935.4,2.36136]
[1742244124614,3.0603,1935.5,1935.4,2.36136]
[1742244126123,1.3539,1935.5,1935.4,2.36136]
[1742244127118,7.265,1935.7,1935.6,1.03335]
[1742244127119,0.6992,1935.7,1935.6,1.03335]
[1742244127425,1.3539,1935.7,1935.6,1.03335]
[1742244127923,1.3539,1935.7,1935.6,2.38535]
[1742244128423,1.04100237,1935.8,1935.7,1.0333]
[1742244128619,1.04100237,1935.8,1935.7,2.3853]
[1742244129821,2.44980237,1935.8,1935.7,2.3853]
[1742244131022,1.41656237,1935.8,1935.7,2.3853]
[1742244131529,2.44980237,1935.8,1935.7,2.3853]
[1742244132030,1.41656237,1935.8,1935.7,2.3853]
[1742244132228,2.44980237,1935.8,1935.7,2.3853]
[1742244132731,0.00776237,1935.8,1935.7,2.3853]
[1742244132933,0.6767,1936.2,1935.9,3.61604]
[1742244133123,1.03308,1936.1,1936.0,3.02609]
[1742244134333,2.33358,1936.1,1936.0,3.02614]
[1742244134830,2.33358,1936.1,1936.0,1.993]
[1742244135032,2.33358,1936.1,1936.0,1.3183]
[1742244135325,1.03314,1936.0,1935.9,3.358]
[1742244135522,1.3005,1936.0,1935.7,1.75324]
[1742244135723,1.03324,1935.8,1935.7,4.39024]
[1742244135925,1.03324,1935.8,1935.7,5.78954]
[1742244136127,43.13374,1935.8,1935.7,5.78954]
[1742244136532,42.1005,1935.8,1935.7,5.78954]
[1742244136920,42.1005,1935.8,1935.7,6.46474]
[1742244137119,1.3005,1935.8,1935.7,6.46474]
[1742244137729,2.33374,1935.8,1935.7,6.46474]
[1742244139220,2.33374,1935.8,1935.7,1.3993]
[1742244139439,2.33374,1935.8,1935.7,2.4326]
[1742244141630,2.33374,1935.8,1935.7,1.3993]
[1742244141835,2.33374,1935.8,1935.7,2.4326]
[1742244142934,1.3005,1935.8,1935.7,2.4326]
[1742244143839,1.70447,1936.0,1935.9,1.03319]
[1742244145129,3.06897,1936.0,1935.9,2.42809]
[1742244146340,2.0358,1936.0,1935.9,2.42809]
[1742244147242,1.3645,1936.0,1935.9,2.42809]
[1742244149039,2.39764,1936.0,1935.9,2.42809]
[1742244157641,0.85781437,1936.1,1936.0,1.03314]
[1742244157846,2.45648,1936.1,1936.0,2.38414]
[1742244158145,3.31429437,1936.1,1936.0,2.38414]
[1742244158943,2.45648,1936.1,1936.0,2.38414]
[1742244159343,3.31421587,1936.1,1936.0,2.38414]
[1742244159551,3.31421587,1936.1,1936.0,1.351]
[1742244160749,3.31421587,1936.1,1935.9,1.03314]
[1742244160750,1.03314,1936.0,1935.9,1.03314]
[1742244160950,2.39864,1936.0,1935.9,2.42444]
[1742244161150,1.0333,1935.8,1935.7,1.03325]
[1742244161349,1.0333,1935.8,1935.7,5.73405]
[1742244161749,2.4728,1935.8,1935.7,5.73405]
[1742244163751,1.4395,1935.8,1935.7,5.73405]
[1742244164547,2.47274,1935.8,1935.7,5.73405]
[1742244175668,1.4395,1935.8,1935.7,5.73405]
[1742244175867,2.47274,1935.8,1935.7,5.73405]
[1742244178575,2.47274,1935.8,1935.7,4.39025]
[1742244178871,2.47274,1935.8,1935.7,5.82245]
[1742244180169,1.4395,1935.8,1935.7,5.82245]
[1742244180474,2.47274,1935.8,1935.7,5.82245]
[1742244180672,1.4395,1935.8,1935.7,5.82245]
[1742244180971,2.47274,1935.8,1935.7,5.82245]
[1742244182376,1.4395,1935.8,1935.7,5.82245]
[1742244182877,2.47274,1935.8,1935.7,5.82245]
[1742244183180,1.4395,1935.8,1935.7,5.82245]
[1742244183377,1.03317,1936.0,1935.9,1.03319]
[1742244183678,2.37877,1936.0,1935.9,1.03319]
[1742244183978,1.03319,1935.9,1935.8,2.36102]
[1742244184174,2.37879,1935.9,1935.8,1.3278]
[1742244184479,1.03324,1935.8,1935.7,5.71806]
[1742244184675,3.10054,1935.8,1935.7,5.71806]
[1742244186079,2.0673,1935.8,1935.7,5.71806]
[1742244187583,3.10054,1935.8,1935.7,5.71806]
[1742244187879,2.0673,1935.8,1935.7,5.71806]
[1742244188982,3.10054,1935.8,1935.7,5.71806]
[1742244189183,2.0673,1935.8,1935.7,5.71806]
[1742244194485,3.10054,1935.8,1935.7,5.71806]
[1742244194683,2.0673,1935.8,1935.7,5.71806]
[1742244195086,3.10054,1935.8,1935.7,5.71806]
[1742244195381,2.0673,1935.8,1935.7,5.71806]
[1742244199482,2.7684,1935.8,1935.7,5.71806]
[1742244202892,1.3456,1935.8,1935.7,5.71806]
[1742244203083,1.3456,1935.8,1935.7,6.41896]
[1742244208991,1.3926,1936.0,1935.9,1.03319]
[1742244209195,1.4379,1936.0,1935.9,7.59699]
[1742244209493,4.24069,1936.5,1936.0,2.58271]
[1742244209797,1.3527,1936.4,1936.3,1.03294]
[1742244209989,2.21122195,1936.4,1936.3,1.03294]
[1742244210188,1.3527,1936.4,1936.3,1.03294]
[1742244210891,2.6557,1936.4,1936.3,1.03294]
[1742244211190,2.6557,1936.4,1936.3,2.39864]
[1742244211389,3.68862,1936.4,1936.3,1.03294]
[1742244211589,4.54639008,1936.4,1936.3,1.03294]
[1742244211790,4.54639008,1936.4,1936.2,1.37346237]
[1742244211987,1.303,1936.3,1936.2,2.40649237]
[1742244214994,2.33598,1936.3,1936.2,2.40649237]
[1742244215195,1.303,1936.3,1936.2,2.40649237]
[1742244216295,2.33598,1936.3,1936.2,2.40649237]
[1742244216493,1.303,1936.3,1936.2,2.40649237]
[1742244216699,2.33598,1936.3,1936.2,2.40649237]
[1742244217200,1.303,1936.3,1936.2,1.04079237]
[1742244217400,2.33598,1936.3,1936.2,1.04079237]
[1742244217803,2.33598,1936.3,1936.2,0.00776237]
[1742244221307,2.33598,1936.3,1936.2,1.04079237]
[1742244221907,2.33598,1936.3,1936.2,0.00776237]
[1742244223109,2.33598,1936.3,1936.2,1.04079237]
[1742244226209,2.33598,1936.3,1936.2,0.00776237]
[1742244227809,2.33598,1936.3,1936.2,1.04079237]
[1742244228006,2.33598,1936.3,1936.2,0.00776237]
[1742244228199,2.33598,1936.3,1936.2,1.04079237]
[1742244229207,1.303,1936.3,1936.2,1.04079237]
[1742244229414,2.33598,1936.3,1936.2,1.04079237]
[1742244229709,1.303,1936.3,1936.2,2.39189237]
[1742244230105,1.303,1936.3,1936.2,3.05409237]
[1742244230501,1.303,1936.3,1936.2,6.40809237]
[1742244230705,3.21281341,1936.5,1936.4,1.03292]
[1742244231106,0.00501341,1936.5,1936.4,1.03292]
[1742244231411,0.00501341,1936.5,1936.4,5.10332]
[1742244232600,0.00501341,1936.5,1936.4,8.31112]
[1742244232806,0.7106,1936.8,1936.7,1.03276]
[1742244233214,0.7148,1936.9,1936.8,1.03271]
[1742244233813,0.7148,1936.9,1936.8,4.38671]
[1742244234013,1.3814,1937.0,1936.9,1.03266]
[1742244235016,2.414,1937.0,1936.9,1.03266]
[1742244235215,3.7319,1937.0,1936.9,1.03266]
[1742244235416,3.7319,1937.0,1936.9,2.38876]
[1742244235616,2.6993,1937.0,1936.9,2.38876]
[1742244237119,2.0284,1937.0,1936.9,2.38876]
[1742244240730,1.3179,1937.0,1936.9,2.38876]
[1742244241032,1.3967,1937.3,1937.2,1.03245]
[1742244241720,1.3967,1937.3,1937.2,2.43895]
[1742244242026,2.7432,1937.3,1937.2,2.43895]
[1742244243327,3.77564,1937.3,1937.2,2.43895]
[1742244243628,3.77564,1937.3,1937.1,3.353]
[1742244243823,3.77564,1937.3,1936.9,3.27792]
[1742244243824,4.5826,1937.2,1936.9,3.353]
[1742244244127,1.3748,1937.1,1937.0,1.0326]
[1742244244331,1.3748,1937.1,1937.0,2.4522]
[1742244245229,1.3748,1937.1,1937.0,3.1058]
[1742244245932,1.3748,1937.1,1937.0,6.3136]
[1742244246121,1.3967,1937.3,1937.2,1.0325]
[1742244246321,2.7715,1937.3,1937.2,1.0325]
[1742244246829,3.80394,1937.3,1937.2,2.337]
[1742244247228,2.7715,1937.3,1937.2,2.337]
[1742244248826,1.0325,1937.2,1937.1,4.38451]
[1742244249032,1.3649,1937.2,1937.1,4.38451]
[1742244249333,1.3649,1937.2,1937.1,5.68901]
[1742244250037,2.3974,1937.2,1937.1,1.03251]
[1742244250230,2.39744,1937.2,1937.1,1.03255]
[1742244250622,1.3649,1937.2,1937.1,1.03255]
[1742244251022,1.3649,1937.2,1937.1,2.33345]
[1742244252327,6.5598,1937.7,1937.4,1.03234]
[1742244252524,3.86313,1937.6,1937.4,1.03234]
[1742244252730,1.03239,1937.4,1937.3,1.3103]
[1742244252936,1.03239,1937.4,1937.3,2.35047174]
[1742244253239,2.39718,1937.5,1937.4,1.03239]
[1742244253437,2.39718,1937.5,1937.3,2.35044174]
[1742244253735,2.39719,1937.4,1937.3,1.04018174]
[1742244254237,1.3648,1937.4,1937.3,1.04018174]
[1742244254537,1.3648,1937.4,1937.3,2.35048174]
[1742244259741,4.2398,1938.2,1937.3,12.99184174]
[1742244259935,1.3499,1938.0,1937.9,1.03212]
[1742244260547,1.3499,1938.0,1937.9,2.38012]
[1742244261547,1.03195,1938.3,1938.2,1.03196]
[1742244261842,1.03196,1938.2,1938.1,2.40757]
[1742244262850,2.39006,1938.2,1938.1,2.40757]
[1742244263541,1.3581,1938.2,1938.1,2.40757]
[1742244263941,1.3581,1938.2,1938.1,5.61537]
[1742244264345,2.39006,1938.2,1938.1,5.61537]
[1742244264545,1.3581,1938.2,1938.1,5.61537]
[1742244264745,2.39006,1938.2,1938.1,5.61537]
[1742244264945,1.3581,1938.2,1938.1,5.61537]
[1742244265350,2.39006,1938.2,1938.1,5.61537]
[1742244266144,1.03205,1938.1,1938.0,1.03203]
[1742244266350,2.47355,1938.1,1938.0,5.75663]
[1742244267552,1.4415,1938.1,1938.0,5.75563]
[1742244268649,2.47352,1938.1,1938.0,5.75563]
[1742244270049,1.4415,1938.1,1938.0,5.75563]
[1742244270252,2.47352,1938.1,1938.0,5.75563]
[1742244271252,1.4415,1938.1,1938.0,5.75563]
[1742244271549,2.47352,1938.1,1938.0,5.75563]
[1742244273048,2.4063,1938.2,1938.1,1.03202]
[1742244273251,2.4063,1938.2,1938.1,2.40382]
[1742244274745,1.3743,1938.2,1938.1,2.40382]
[1742244275150,1.3743,1938.2,1938.1,6.29102]
[1742244278049,3.2078,1938.5,1938.1,5.259]
[1742244278354,2.36081,1938.4,1938.3,1.03188]
[1742244278545,43.88291,1938.4,1938.3,1.03188]
[1742244278745,43.88291,1938.4,1938.2,1.441]
[1742244278746,1.03191,1938.3,1938.2,2.47292]
[1742244278956,2.36081,1938.3,1938.2,2.47292]
[1742244280351,2.36081,1938.3,1938.2,1.03192]
[1742244280655,1.032,1938.2,1938.1,1.03196]
[1742244280847,2.3447,1938.2,1938.1,1.03196]
[1742244281154,1.3127,1938.2,1938.1,1.03196]
[1742244281352,1.3127,1938.2,1938.1,2.41116]
[1742244283253,1.3127,1938.2,1938.1,5.61896]
[1742244283950,1.3971,1938.4,1938.3,1.03191]
[1742244284143,1.3201,1938.4,1938.3,1.03191]
[1742244284548,1.3201,1938.4,1938.3,3.09571]
[1742244284943,1.3201,1938.4,1938.3,2.43181]
[1742244284944,2.35196,1938.4,1938.3,2.43181]
[1742244285154,1.3201,1938.4,1938.3,2.43181]
[1742244285350,2.35196,1938.4,1938.3,2.43181]
[1742244285555,1.3201,1938.4,1938.3,2.43181]
[1742244286457,2.35196,1938.4,1938.3,2.43181]
[1742244286651,1.3201,1938.4,1938.3,2.43181]
[1742244286851,2.35196,1938.4,1938.3,2.43181]
[1742244287457,2.35196,1938.4,1938.3,1.3999]
[1742244287756,2.35196,1938.4,1938.3,2.43181]
[1742244289358,1.83891856,1938.5,1938.4,1.03186]
[1742244289554,3.24551856,1938.6,1938.5,1.0318]
[1742244289748,2.38879311,1938.6,1938.5,1.0318]
[1742244289946,2.43835,1938.6,1938.5,1.3407]
[1742244290252,4.27726856,1938.6,1938.5,1.3407]
[1742244290558,4.27726856,1938.6,1938.5,2.3725]
[1742244292760,5.65646856,1938.6,1938.5,2.3725]
[1742244294560,4.67427545,1938.6,1938.5,2.3725]
[1742244298955,3.64252545,1938.6,1938.5,3.042]
[1742244299161,2.0721,1938.6,1938.5,6.2498]
[1742244300360,3.10385,1938.6,1938.5,6.2498]
[1742244300961,3.10385,1938.6,1938.5,5.5803]
[1742244301561,3.10385,1938.6,1938.5,1.3407]
[1742244301765,3.10385,1938.6,1938.5,2.3725]
[1742244301958,3.96177674,1938.6,1938.5,2.3725]
[1742244304861,3.96177674,1938.6,1938.5,1.3407]
[1742244306170,1.0318,1938.5,1938.4,1.03957174]
[1742244306361,3.24302674,1938.5,1938.4,2.44957174]
[1742244306665,3.24302674,1938.5,1938.4,2.44960174]
[1742244306867,4.22580334,1938.5,1938.4,1.41774174]
[1742244307063,3.3678766,1938.5,1938.4,2.44960174]
[1742244307264,2.3851,1938.5,1938.4,2.44960174]
[1742244307766,1.03201,1938.2,1938.1,1.03196]
[1742244308470,1.03202,1938.1,1938.0,2.43035]
[1742244308672,0.6636,1938.1,1938.0,2.43035]
[1742244308861,2.6954966,1938.3,1938.2,1.03196]
[1742244309167,3.94211689,1938.3,1938.2,1.03196]
[1742244309367,4.64171689,1938.3,1938.2,1.03196]
[1742244309572,5.62454729,1938.3,1938.2,1.3983]
[1742244309759,4.64171689,1938.3,1938.2,2.43026]
[1742244310166,4.64171689,1938.3,1938.2,1.3983]
[1742244310371,4.64171689,1938.3,1938.2,2.43026]
[1742244310968,3.78362,1938.3,1938.2,2.43026]
[1742244311669,4.64174859,1938.3,1938.2,2.43026]
[1742244312170,0.00767297,1938.4,1938.3,1.03191]
[1742244312369,0.00767297,1938.4,1938.3,8.27721]
[1742244312864,6.5613,1938.7,1938.4,2.57955]
[1742244313060,0.677,1938.9,1938.8,1.03164]
[1742244313459,3.04789,1938.9,1938.8,1.03164]
[1742244313665,3.90612441,1938.9,1938.8,1.03164]
[1742244313865,3.90612441,1938.9,1938.8,2.34794]
[1742244315264,1.3393,1938.9,1938.8,2.34794]
[1742244316068,0.98248302,1939.1,1938.8,1.3163]
[1742244316266,0.98248302,1939.1,1939.0,1.03154]
[1742244316564,41.8314,1939.3,1939.2,1.03143]
[1742244316770,1.03143,1939.2,1939.1,2.33564]
[1742244316970,2.35193,1939.2,1939.1,1.31194174]
[1742244317271,6.41711268,1939.2,1939.1,0.00774174]
[1742244318871,6.41711268,1939.2,1939.1,1.31194174]
[1742244321271,5.55973,1939.2,1939.1,1.31194174]
[1742244321869,2.35193,1939.2,1939.1,2.34342174]
[1742244322074,2.35193,1939.2,1939.1,1.31194174]
[1742244322375,5.55973,1939.2,1939.1,1.31194174]
[1742244322676,5.55973,1939.2,1939.1,2.34342174]
[1742244322873,5.55973,1939.2,1939.1,1.31194174]
[1742244323171,5.55973,1939.2,1939.1,2.34342174]
[1742244323370,5.55973,1939.2,1939.1,1.31194174]
[1742244323572,5.55973,1939.2,1939.1,2.34342174]
[1742244323767,1.3205,1939.2,1939.1,2.34342174]
[1742244323965,1.3593,1939.4,1939.3,1.03138]
[1742244324162,0.6535,1939.4,1939.3,1.03138]
[1742244324363,3.2078,1939.6,1939.5,1.03127]
[1742244324774,3.2078,1939.6,1939.4,4.37831]
[1742244324969,4.23902,1939.6,1939.5,1.4369]
[1742244327975,4.23902,1939.6,1939.5,2.46817]
[1742244328174,1.03122,1939.6,1939.5,2.46817]
[1742244328368,1.03122,1939.6,1939.5,1.4369]
[1742244328575,4.23902,1939.6,1939.5,1.4369]
[1742244328970,1.03132,1939.4,1939.3,1.03136]
[1742244329169,5.78597,1939.6,1939.2,1.3514]
[1742244329170,1.03138,1939.3,1939.2,5.76818]
[1742244329573,41.83138,1939.3,1939.2,5.76818]
[1742244329875,1.03138,1939.3,1939.2,5.76818]
[1742244332873,5.15594,1939.7,1939.6,1.03118]
[1742244332874,1.03124,1939.7,1939.6,1.03118]
[1742244333578,1.03124,1939.7,1939.6,2.41548]
[1742244334675,1.0311,1939.9,1939.8,1.03106]
[1742244335381,1.0311,1939.9,1939.8,2.40876]
[1742244335875,1.72621,1940.0,1939.9,1.03106]
[1742244336079,1.72621,1940.0,1939.9,2.40876]
[1742244337486,0.6952,1940.0,1939.9,2.40876]
[1742244337676,0.6952,1940.0,1939.9,5.75476]
[1742244337982,1.72621,1940.0,1939.9,5.75476]
[1742244338179,0.6952,1940.0,1939.9,5.75476]
[1742244338375,5.15387,1940.5,1939.9,5.75476]
[1742244338376,3.2078,1940.6,1939.9,4.7237]
[1742244338582,1.03083,1940.4,1940.3,1.03077]
[1742244338778,1.03083,1940.4,1940.3,2.38267]
[1742244338978,4.23854,1940.6,1940.4,1.03074]
[1742244338979,1.03078,1940.5,1940.4,1.03074]
[1742244339583,1.03085,1940.3,1940.2,0.00774174]
[1742244339986,1.03085,1940.3,1940.2,1.03864174]
[1742244340183,2.47395,1940.3,1940.2,2.39054174]
[1742244340581,3.2078,1940.6,1940.2,1.35964174]
[1742244340782,1.03072,1940.7,1940.3,4.0453]
[1742244340984,1.03073,1940.6,1940.5,1.03069]
[1742244341286,2.33353,1940.6,1940.5,5.69919]
[1742244342082,2.33353,1940.6,1940.5,2.35319]
[1742244342384,1.03085,1940.3,1940.2,0.00774174]
[1742244342585,1.03085,1940.3,1940.2,1.03864174]
[1742244343081,1.03076,1940.6,1940.5,1.03071]
[1742244343282,2.33356,1940.6,1940.5,1.03071]
[1742244343483,1.03074,1940.5,1940.4,2.35325]
[1742244343677,43.84624,1940.5,1940.4,2.35329]
[1742244344475,1.03079,1940.4,1940.3,4.37685]
[1742244344687,2.44999,1940.4,1940.3,4.37685]
[1742244345088,3.14619,1940.4,1940.3,4.37685]
[1742244345683,2.1154,1940.4,1940.3,4.37685]
[1742244346081,41.5127,1940.5,1940.3,3.346]
[1742244346287,1.4192,1940.6,1940.5,1.03074]
[1742244346587,4.23848,1940.7,1940.6,1.03069]
[1742244346787,45.03848,1940.7,1940.6,2.46889]
[1742244347289,46.37968,1940.7,1940.6,1.4382]
[1742244347486,46.37968,1940.7,1940.5,3.348]
[1742244347487,1.03069,1940.6,1940.5,3.348]
[1742244347682,1.03074,1940.5,1940.4,2.39619]
[1742244347883,1.74034,1940.5,1940.4,1.3654]
[1742244348488,1.74034,1940.5,1940.4,2.39619]
[1742244348690,1.74034,1940.5,1940.4,1.3654]
[1742244348885,1.03085,1940.3,1940.2,4.38560174]
[1742244350087,1.4199,1940.3,1940.2,5.73270174]
[1742244350489,2.45075,1940.3,1940.2,5.73270174]
[1742244350990,1.4199,1940.3,1940.2,5.73270174]
[1742244351191,1.72722,1940.4,1940.3,1.03085]
[1742244351192,0.6964,1940.4,1940.3,1.03085]
[1742244351388,2.1163,1940.4,1940.3,2.37795]
[1742244351995,3.14709,1940.4,1940.3,2.37795]
[1742244352188,4.23858,1940.5,1940.4,1.03079]
[1742244352388,4.23858,1940.5,1940.4,2.37789]
[1742244352994,1.03085,1940.3,1940.2,4.38563174]
[1742244353492,1.03085,1940.3,1940.2,1.03864174]
[1742244353694,1.72475,1940.3,1940.2,1.03864174]
[1742244354297,1.72475,1940.3,1940.2,2.36904174]
[1742244354491,44.0078,1940.7,1940.4,1.03079]
[1742244354795,4.23849,1940.7,1940.6,1.03069]
[1742244354996,1.03069,1940.6,1940.5,2.3611]
[1742244355289,1.75059,1940.6,1940.5,2.3611]
[1742244355786,1.75059,1940.6,1940.5,1.3304]
[1742244355989,1.03077,1940.5,1940.4,1.03074]
[1742244356189,1.75237,1940.5,1940.4,2.34744]
[1742244357490,0.7216,1940.5,1940.4,2.34744]
[1742244359291,0.7199,1940.6,1940.5,1.03074]
[1742244359497,0.7199,1940.6,1940.5,3.07674]
[1742244360304,0.7199,1940.6,1940.5,2.38974]
[1742244360507,1.75059,1940.6,1940.5,1.359]
[1742244361001,1.75059,1940.6,1940.5,2.38974]
[1742244361203,1.75059,1940.6,1940.2,3.29048174]
[1742244361204,1.03085,1940.4,1940.2,3.29048174]
[1742244361397,1.03085,1940.4,1940.3,1.359]
[1742244361805,4.92005,1940.4,1940.3,1.359]
[1742244362108,4.92005,1940.4,1940.3,2.38985]
[1742244362803,1.71225,1940.4,1940.3,2.38985]
[1742244363302,1.71225,1940.4,1940.3,1.359]
[1742244363504,4.92005,1940.4,1940.3,2.38985]
[1742244364206,5.77808283,1940.4,1940.3,1.359]
[1742244364404,5.77808283,1940.4,1940.3,2.38985]
[1742244364601,4.92005,1940.4,1940.3,2.38985]
[1742244364797,2.57032376,1940.4,1940.3,2.38985]
[1742244365112,0.6814,1940.4,1940.3,2.38985]
[1742244365300,2.60869376,1940.6,1940.5,1.03074]
[1742244365501,1.75062,1940.6,1940.5,1.03074]
[1742244366007,3.57474715,1940.7,1940.6,1.03069]
[1742244366599,2.59125376,1940.7,1940.6,1.03069]
[1742244368912,3.57592887,1940.7,1940.6,1.03069]
[1742244369115,2.71785511,1940.7,1940.6,1.03069]
[1742244369408,2.59282366,1940.7,1940.6,1.03069]
[1742244369610,3.03238,1940.7,1940.6,1.03069]
[1742244370011,3.89203429,1940.7,1940.6,1.03069]
[1742244370210,3.89214671,1940.7,1940.6,1.03069]
[1742244371106,3.89214766,1940.7,1940.6,1.03069]
[1742244371302,2.86146766,1940.7,1940.6,2.37469]
[1742244371508,3.03233,1940.7,1940.6,2.37469]
[1742244371710,2.86151288,1940.7,1940.6,2.37469]
[1742244372014,2.0017,1940.7,1940.6,2.37469]
[1742244372211,41.4708,1940.9,1940.6,1.344]
[1742244372405,2.44988,1940.8,1940.7,3.09353]
[1742244372807,3.30970441,1940.8,1940.7,1.344]
[1742244373099,3.30970441,1940.8,1940.7,2.37463]
[1742244373910,2.44988,1940.8,1940.7,2.37463]
[1742244375107,1.4193,1940.8,1940.7,2.37463]
[1742244375308,2.44988,1940.8,1940.7,2.37463]
[1742244375614,1.4193,1940.8,1940.7,2.37463]
[1742244375812,2.44988,1940.8,1940.7,2.37463]